[Event "*** Titled Tuesday Blitz"]
[Site "Chess.com"]
[Date "2020.11.03"]
[Round "3"]
[White "lukas_111111"]
[Black "TimofeevAr"]
[Result "1-0"]
[WhiteElo "2567"]
[BlackElo "2804"]
[TimeControl "180+1"]
[EndTime "10:31:15 PST"]
[Termination "lukas_111111 won by resignation"]

1. d4 {[%clk 0:03:00.9]} 1... d5 {[%clk 0:02:58.4]} 2. c4 {[%clk 0:02:58.6]}
2... dxc4 {[%clk 0:02:58.3]} 3. Nf3 {[%clk 0:02:56.6]} 3... Nf6 {[%clk
0:02:58.1]} 4. e3 {[%clk 0:02:56.7]} 4... e6 {[%clk 0:02:58.4]} 5. Bxc4 {[%clk
0:02:56.7]} 5... c5 {[%clk 0:02:58.8]} 6. O-O {[%clk 0:02:56.3]} 6... a6 {[%clk
0:02:59.1]} 7. b3 {[%clk 0:02:55.7]} 7... cxd4 {[%clk 0:02:58.5]} 8. Nxd4 {[%clk
0:02:54.9]} 8... Bd6 {[%clk 0:02:58.4]} 9. Bb2 {[%clk 0:02:49.4]} 9... O-O
{[%clk 0:02:58.1]} 10. Nd2 {[%clk 0:02:47.9]} 10... Qe7 {[%clk 0:02:58.1]} 11.
Qf3 {[%clk 0:02:41.3]} 11... Nbd7 {[%clk 0:02:49.9]} 12. Ne4 {[%clk 0:02:38]}
12... Ne5 {[%clk 0:02:41.8]} 13. Nxf6+ {[%clk 0:02:36.4]} 13... Qxf6 {[%clk
0:02:41.8]} 14. Qxf6 {[%clk 0:02:33.9]} 14... gxf6 {[%clk 0:02:41.9]} 15. Be2
{[%clk 0:02:32.9]} 15... Rd8 {[%clk 0:02:40.8]} 16. f4 {[%clk 0:02:16.7]} 16...
Nd7 {[%clk 0:02:37.7]} 17. Bf3 {[%clk 0:02:11.7]} 17... Nc5 {[%clk 0:02:27.8]}
18. Rfd1 {[%clk 0:02:05.3]} 18... e5 {[%clk 0:02:19.8]} 19. Ne2 {[%clk 0:01:33]}
19... Be6 {[%clk 0:02:09.4]} 20. fxe5 {[%clk 0:01:25.4]} 20... fxe5 {[%clk
0:02:06.1]} 21. Nc3 {[%clk 0:01:24]} 21... Bc7 {[%clk 0:01:26]} 22. Nd5 {[%clk
0:01:11.9]} 22... Bxd5 {[%clk 0:01:25.9]} 23. Bxd5 {[%clk 0:01:10.9]} 23... Rab8
{[%clk 0:01:15.1]} 24. Rac1 {[%clk 0:00:56.1]} 24... Bd6 {[%clk 0:01:15]} 25.
Bc4 {[%clk 0:00:41.4]} 25... Ne4 {[%clk 0:01:05.9]} 26. Rf1 {[%clk 0:00:38.2]}
26... Rd7 {[%clk 0:00:57.8]} 27. Rcd1 {[%clk 0:00:35.3]} 27... Rbd8 {[%clk
0:00:56.8]} 28. Bd5 {[%clk 0:00:30]} 28... Ng5 {[%clk 0:00:52.8]} 29. h4 {[%clk
0:00:19.2]} 29... Ne6 {[%clk 0:00:52.9]} 30. Bxe6 {[%clk 0:00:17.1]} 30... fxe6
{[%clk 0:00:53]} 31. Kh2 {[%clk 0:00:15.1]} 31... e4+ {[%clk 0:00:44.4]} 32. Kh3
{[%clk 0:00:15.1]} 32... Bc5 {[%clk 0:00:44.1]} 33. Rxd7 {[%clk 0:00:13.2]}
33... Rxd7 {[%clk 0:00:44.3]} 34. Rf4 {[%clk 0:00:13.3]} 34... Rd2 {[%clk
0:00:44.2]} 35. Be5 {[%clk 0:00:12]} 35... Bxe3 {[%clk 0:00:33.6]} 36. Rxe4
{[%clk 0:00:11.8]} 36... Bh6 {[%clk 0:00:33]} 37. g4 {[%clk 0:00:10.7]} 37...
Rxa2 {[%clk 0:00:32.1]} 38. g5 {[%clk 0:00:10.9]} 38... Bf8 {[%clk 0:00:32.1]}
39. Rc4 {[%clk 0:00:09.4]} 39... Ra3 {[%clk 0:00:30.3]} 40. Rc3 {[%clk
0:00:06.8]} 40... b5 {[%clk 0:00:29.6]} 41. Kg4 {[%clk 0:00:06.7]} 41... a5
{[%clk 0:00:29.7]} 42. Rc8 {[%clk 0:00:06.6]} 42... Rxb3 {[%clk 0:00:23.9]} 43.
Bd6 {[%clk 0:00:06.6]} 43... a4 {[%clk 0:00:23.8]} 44. Rxf8+ {[%clk 0:00:05.8]}
44... Kg7 {[%clk 0:00:24.4]} 45. Ra8 {[%clk 0:00:06.3]} 45... Rd3 {[%clk
0:00:22.6]} 46. Be5+ {[%clk 0:00:05.9]} 46... Kf7 {[%clk 0:00:23.1]} 47. Ra7+
{[%clk 0:00:06.3]} 47... Kg8 {[%clk 0:00:23.5]} 48. Rg7+ {[%clk 0:00:05.5]}
48... Kf8 {[%clk 0:00:22.9]} 49. Rxh7 {[%clk 0:00:05.8]} 49... a3 {[%clk
0:00:23.4]} 50. Ra7 {[%clk 0:00:06]} 50... b4 {[%clk 0:00:23.6]} 51. g6 {[%clk
0:00:06.5]} 51... Rd8 {[%clk 0:00:22.8]} 52. h5 {[%clk 0:00:05.8]} 52... Rc8
{[%clk 0:00:22.2]} 53. h6 {[%clk 0:00:05.7]} 1-0

[Event "*** Titled Tuesday Blitz"]
[Site "Chess.com"]
[Date "2020.11.03"]
[Round "3"]
[White "GalperinPlaton"]
[Black "ehrenfeld"]
[Result "0-1"]
[WhiteElo "2875"]
[BlackElo "2484"]
[TimeControl "180+1"]
[EndTime "10:31:16 PST"]
[Termination "ehrenfeld won by checkmate"]

1. a4 {[%clk 0:03:00.9]} 1... e5 {[%clk 0:02:59]} 2. c3 {[%clk 0:03:01.3]} 2...
d5 {[%clk 0:02:58.8]} 3. Na3 {[%clk 0:03:01.7]} 3... Nf6 {[%clk 0:02:58.2]} 4.
Nc2 {[%clk 0:03:02.2]} 4... Bd6 {[%clk 0:02:57.6]} 5. g3 {[%clk 0:03:02.6]} 5...
O-O {[%clk 0:02:57.2]} 6. Bg2 {[%clk 0:03:03.2]} 6... c5 {[%clk 0:02:56.4]} 7.
d4 {[%clk 0:03:02.8]} 7... cxd4 {[%clk 0:02:55]} 8. cxd4 {[%clk 0:03:03.7]} 8...
e4 {[%clk 0:02:54.9]} 9. b4 {[%clk 0:03:02.9]} 9... h6 {[%clk 0:02:51.8]} 10.
Nh3 {[%clk 0:03:01.5]} 10... Bxh3 {[%clk 0:02:43.1]} 11. Bxh3 {[%clk 0:03:00.7]}
11... Nc6 {[%clk 0:02:44]} 12. b5 {[%clk 0:03:00.1]} 12... Ne7 {[%clk 0:02:41]}
13. O-O {[%clk 0:02:59.8]} 13... Ng6 {[%clk 0:02:35.5]} 14. Bd2 {[%clk
0:02:57.4]} 14... Re8 {[%clk 0:02:34.7]} 15. Qb1 {[%clk 0:02:54.5]} 15... Nh7
{[%clk 0:02:14.5]} 16. Qb3 {[%clk 0:02:53.2]} 16... Ng5 {[%clk 0:02:12]} 17. Bg2
{[%clk 0:02:44.2]} 17... Ne7 {[%clk 0:02:00.1]} 18. Ne3 {[%clk 0:02:41.6]} 18...
Bc7 {[%clk 0:01:48]} 19. Bb4 {[%clk 0:02:41.6]} 19... Bd6 {[%clk 0:01:41.9]} 20.
a5 {[%clk 0:02:36]} 20... Bxb4 {[%clk 0:01:40.4]} 21. Qxb4 {[%clk 0:02:36.9]}
21... Qd7 {[%clk 0:01:39.1]} 22. h4 {[%clk 0:02:34.5]} 22... Ne6 {[%clk
0:01:38.4]} 23. Bh3 {[%clk 0:02:33.9]} 23... Rf8 {[%clk 0:01:33.2]} 24. Nf5
{[%clk 0:02:08.3]} 24... Nxf5 {[%clk 0:01:31.9]} 25. Bxf5 {[%clk 0:02:09.2]}
25... g6 {[%clk 0:01:31.7]} 26. Bh3 {[%clk 0:01:58.6]} 26... f5 {[%clk
0:01:31.3]} 27. e3 {[%clk 0:01:56.7]} 27... g5 {[%clk 0:01:27.5]} 28. hxg5
{[%clk 0:01:47.5]} 28... hxg5 {[%clk 0:01:27.1]} 29. Rfc1 {[%clk 0:01:40.4]}
29... g4 {[%clk 0:01:26.1]} 30. Bf1 {[%clk 0:01:40.4]} 30... Ng5 {[%clk
0:01:22]} 31. Kg2 {[%clk 0:01:40]} 31... Qh7 {[%clk 0:01:13.9]} 32. f4 {[%clk
0:01:20.7]} 32... Qh3+ {[%clk 0:00:41.5]} 33. Kf2 {[%clk 0:01:02.2]} 33... Qh2+
{[%clk 0:00:40.8]} 34. Ke1 {[%clk 0:00:59.5]} 34... Nf3+ {[%clk 0:00:34.4]} 35.
Kd1 {[%clk 0:00:59.1]} 35... Qf2 {[%clk 0:00:23.3]} 36. Be2 {[%clk 0:00:59.1]}
36... Qxe3 {[%clk 0:00:22.3]} 37. Qc3 {[%clk 0:00:19.1]} 37... Qxd4+ {[%clk
0:00:15]} 38. Qxd4 {[%clk 0:00:17]} 38... Nxd4 {[%clk 0:00:15.1]} 39. Bf1 {[%clk
0:00:17.6]} 39... Rac8 {[%clk 0:00:12.5]} 40. Rcb1 {[%clk 0:00:17.8]} 40... Nf3
{[%clk 0:00:11.5]} 41. Ra4 {[%clk 0:00:15.5]} 41... d4 {[%clk 0:00:10.9]} 42. b6
{[%clk 0:00:15.9]} 42... a6 {[%clk 0:00:10.1]} 43. Bc4+ {[%clk 0:00:16.2]} 43...
Kg7 {[%clk 0:00:09.1]} 44. Bd5 {[%clk 0:00:16.6]} 44... d3 {[%clk 0:00:08.4]}
45. Bxb7 {[%clk 0:00:16.4]} 45... Rh8 {[%clk 0:00:04.6]} 46. Rxe4 {[%clk
0:00:03.5]} 46... Rh1+ {[%clk 0:00:03.6]} 47. Re1 {[%clk 0:00:04.4]} 47... Rxe1#
{[%clk 0:00:03.2]} 0-1

[Event "*** Titled Tuesday Blitz"]
[Site "Chess.com"]
[Date "2020.11.03"]
[Round "3"]
[White "Fy_Rakotomaharo"]
[Black "serhanberat_ozdemir"]
[Result "1-0"]
[WhiteElo "2625"]
[BlackElo "2397"]
[TimeControl "180+1"]
[EndTime "10:31:16 PST"]
[Termination "Fy_Rakotomaharo won by checkmate"]

1. d4 {[%clk 0:03:00.9]} 1... Nf6 {[%clk 0:02:58.8]} 2. Nf3 {[%clk 0:03:00.9]}
2... g6 {[%clk 0:02:58.7]} 3. Nbd2 {[%clk 0:03:00.1]} 3... d5 {[%clk 0:02:57.5]}
4. e3 {[%clk 0:02:59.5]} 4... Bg7 {[%clk 0:02:57.5]} 5. b4 {[%clk 0:02:59.6]}
5... O-O {[%clk 0:02:40.5]} 6. Bb2 {[%clk 0:02:58.7]} 6... b6 {[%clk 0:02:34.5]}
7. c4 {[%clk 0:02:54.7]} 7... dxc4 {[%clk 0:02:31.7]} 8. Bxc4 {[%clk 0:02:54]}
8... Bb7 {[%clk 0:02:26.9]} 9. O-O {[%clk 0:02:51.6]} 9... Nbd7 {[%clk
0:02:26.5]} 10. Qe2 {[%clk 0:02:38.3]} 10... c5 {[%clk 0:02:25.8]} 11. dxc5
{[%clk 0:02:35.9]} 11... bxc5 {[%clk 0:02:26.7]} 12. b5 {[%clk 0:02:35.9]} 12...
Qc7 {[%clk 0:01:59.9]} 13. a4 {[%clk 0:02:26.6]} 13... Nd5 {[%clk 0:01:13.3]}
14. Bxg7 {[%clk 0:02:09.2]} 14... Kxg7 {[%clk 0:01:14.2]} 15. Rfc1 {[%clk
0:02:08.7]} 15... Nb4 {[%clk 0:01:03.2]} 16. a5 {[%clk 0:02:02.7]} 16... Ne5
{[%clk 0:00:55]} 17. Nxe5 {[%clk 0:01:57.3]} 17... Qxe5 {[%clk 0:00:55.9]} 18.
a6 {[%clk 0:01:56]} 18... Bd5 {[%clk 0:00:45]} 19. e4 {[%clk 0:01:55.7]} 19...
Bxc4 {[%clk 0:00:33.4]} 20. Qxc4 {[%clk 0:01:55.7]} 20... Rac8 {[%clk
0:00:22.2]} 21. Nb3 {[%clk 0:01:42.8]} 21... Rc7 {[%clk 0:00:05.5]} 22. g3
{[%clk 0:01:07.3]} 22... Rfc8 {[%clk 0:00:02.3]} 23. f4 {[%clk 0:01:07.3]} 23...
Qd6 {[%clk 0:00:02.1]} 24. Rd1 {[%clk 0:00:55.7]} 24... Qb6 {[%clk 0:00:01.8]}
25. Na5 {[%clk 0:00:55.4]} 25... Rb8 {[%clk 0:00:01]} 26. Nb7 {[%clk 0:00:53.8]}
26... Rbxb7 {[%clk 0:00:01.1]} 27. axb7 {[%clk 0:00:54]} 27... Rxb7 {[%clk
0:00:01.3]} 28. e5 {[%clk 0:00:39]} 28... Qxb5 {[%clk 0:00:01.2]} 29. Qxb5
{[%clk 0:00:38.8]} 29... Rxb5 {[%clk 0:00:02.1]} 30. Rxa7 {[%clk 0:00:39]} 30...
Nc6 {[%clk 0:00:02.1]} 31. Rc7 {[%clk 0:00:39.1]} 31... Rb6 {[%clk 0:00:02.4]}
32. Rd5 {[%clk 0:00:32.1]} 32... Nd4 {[%clk 0:00:02.2]} 33. Rcxc5 {[%clk
0:00:27.3]} 33... Ne6 {[%clk 0:00:02]} 34. Rc2 {[%clk 0:00:23.6]} 34... Rb1+
{[%clk 0:00:02]} 35. Kf2 {[%clk 0:00:22.3]} 35... Rb3 {[%clk 0:00:02.9]} 36. Rd7
{[%clk 0:00:21.3]} 36... Kf8 {[%clk 0:00:02.7]} 37. Rc8+ {[%clk 0:00:21.4]}
37... Kg7 {[%clk 0:00:02.6]} 38. Rxe7 {[%clk 0:00:22]} 38... Rb2+ {[%clk
0:00:03.4]} 39. Ke3 {[%clk 0:00:22.3]} 39... Rxh2 {[%clk 0:00:03.3]} 40. Ra8
{[%clk 0:00:20.9]} 40... Rg2 {[%clk 0:00:03.2]} 41. Kf3 {[%clk 0:00:21.3]} 41...
Rc2 {[%clk 0:00:03.3]} 42. Raa7 {[%clk 0:00:21.7]} 42... Rc3+ {[%clk 0:00:04]}
43. Ke4 {[%clk 0:00:19.3]} 43... Nc5+ {[%clk 0:00:04.2]} 44. Kd4 {[%clk
0:00:19.5]} 44... Rc1 {[%clk 0:00:03.7]} 45. Rxf7+ {[%clk 0:00:19.9]} 45... Kg8
{[%clk 0:00:04.6]} 46. Rg7+ {[%clk 0:00:19.7]} 46... Kf8 {[%clk 0:00:04.1]} 47.
Rgf7+ {[%clk 0:00:17.7]} 47... Kg8 {[%clk 0:00:04.2]} 48. Rg7+ {[%clk
0:00:17.1]} 48... Kf8 {[%clk 0:00:03.2]} 49. Rxh7 {[%clk 0:00:18]} 49... Nb3+
{[%clk 0:00:03.6]} 50. Kd5 {[%clk 0:00:17.9]} 50... Rc5+ {[%clk 0:00:03.4]} 51.
Kd6 {[%clk 0:00:17.5]} 51... Rc8 {[%clk 0:00:03.9]} 52. Rh8# {[%clk 0:00:17]}
1-0

[Event "*** Titled Tuesday Blitz"]
[Site "Chess.com"]
[Date "2020.11.03"]
[Round "3"]
[White "bazar-wokzal"]
[Black "AsaHoffmann"]
[Result "0-1"]
[WhiteElo "2506"]
[BlackElo "2311"]
[TimeControl "180+1"]
[EndTime "10:31:18 PST"]
[Termination "AsaHoffmann won on time"]

1. e4 {[%clk 0:03:00.9]} 1... d6 {[%clk 0:02:59.3]} 2. f4 {[%clk 0:03:00.6]}
2... c6 {[%clk 0:02:56.6]} 3. Nc3 {[%clk 0:03:00.2]} 3... g6 {[%clk 0:02:55.3]}
4. Nf3 {[%clk 0:03:00]} 4... Bg7 {[%clk 0:02:55.1]} 5. d4 {[%clk 0:02:58.9]}
5... Bg4 {[%clk 0:02:50.3]} 6. Be3 {[%clk 0:02:57.5]} 6... Qb6 {[%clk
0:02:49.7]} 7. Qd2 {[%clk 0:02:53.5]} 7... Nd7 {[%clk 0:02:45.8]} 8. O-O-O
{[%clk 0:02:51.8]} 8... Qa5 {[%clk 0:02:37.3]} 9. Kb1 {[%clk 0:02:46.3]} 9... b5
{[%clk 0:02:36.4]} 10. e5 {[%clk 0:02:37.4]} 10... d5 {[%clk 0:02:28.1]} 11. Ne2
{[%clk 0:02:11.3]} 11... Qxd2 {[%clk 0:02:23.7]} 12. Nxd2 {[%clk 0:02:10.8]}
12... e6 {[%clk 0:02:21.4]} 13. h3 {[%clk 0:02:10.8]} 13... Bxe2 {[%clk
0:02:19.3]} 14. Bxe2 {[%clk 0:02:11.3]} 14... Ne7 {[%clk 0:02:17.5]} 15. g4
{[%clk 0:02:11.2]} 15... a6 {[%clk 0:02:13.2]} 16. b3 {[%clk 0:02:05.8]} 16...
Rc8 {[%clk 0:02:11.9]} 17. c4 {[%clk 0:02:05.3]} 17... O-O {[%clk 0:02:04.9]}
18. c5 {[%clk 0:02:01.3]} 18... a5 {[%clk 0:02:02]} 19. Bd3 {[%clk 0:01:53.9]}
19... f6 {[%clk 0:02:00.7]} 20. exf6 {[%clk 0:01:50.4]} 20... Nxf6 {[%clk
0:01:55.1]} 21. Rde1 {[%clk 0:01:48.5]} 21... Rce8 {[%clk 0:01:45.7]} 22. Bf2
{[%clk 0:01:48.3]} 22... Nc8 {[%clk 0:01:32.2]} 23. Nf3 {[%clk 0:01:40.7]} 23...
Nd7 {[%clk 0:01:27.4]} 24. Bg3 {[%clk 0:01:36.3]} 24... e5 {[%clk 0:01:11.8]}
25. Nxe5 {[%clk 0:01:31.2]} 25... Bxe5 {[%clk 0:01:10.5]} 26. dxe5 {[%clk
0:01:13.6]} 26... Nxc5 {[%clk 0:01:09.9]} 27. Bc2 {[%clk 0:01:10.3]} 27... Ne7
{[%clk 0:01:04.4]} 28. Rhf1 {[%clk 0:00:59.7]} 28... Rd8 {[%clk 0:01:02.8]} 29.
f5 {[%clk 0:00:54.3]} 29... d4 {[%clk 0:00:57.3]} 30. f6 {[%clk 0:00:51.8]}
30... Nd5 {[%clk 0:00:52.4]} 31. e6 {[%clk 0:00:18.8]} 31... Rxf6 {[%clk
0:00:34.9]} 32. e7 {[%clk 0:00:19]} 32... Re8 {[%clk 0:00:34.8]} 33. Rxf6 {[%clk
0:00:16.4]} 33... Nxf6 {[%clk 0:00:34.1]} 34. Bd6 {[%clk 0:00:16.4]} 34... d3
{[%clk 0:00:27.6]} 35. Bxc5 {[%clk 0:00:15.7]} 35... dxc2+ {[%clk 0:00:27.1]}
36. Kxc2 {[%clk 0:00:16.6]} 36... Nd5 {[%clk 0:00:26.7]} 37. Re6 {[%clk
0:00:14.5]} 37... Kf7 {[%clk 0:00:24.4]} 38. Rxc6 {[%clk 0:00:14.1]} 38... Nxe7
{[%clk 0:00:24.2]} 39. Rc7 {[%clk 0:00:14.1]} 39... Ke6 {[%clk 0:00:24.2]} 40.
Bxe7 {[%clk 0:00:13.3]} 40... Rxe7 {[%clk 0:00:24]} 41. Rc5 {[%clk 0:00:08.6]}
41... Rb7 {[%clk 0:00:22.7]} 42. Kd3 {[%clk 0:00:08.7]} 42... Kd6 {[%clk
0:00:22]} 43. Kd4 {[%clk 0:00:08.9]} 43... a4 {[%clk 0:00:21.3]} 44. b4 {[%clk
0:00:06.7]} 44... Rb8 {[%clk 0:00:20.7]} 45. g5 {[%clk 0:00:06.5]} 45... Rb7
{[%clk 0:00:20.3]} 46. h4 {[%clk 0:00:06.4]} 46... Rb8 {[%clk 0:00:20.3]} 47.
Rd5+ {[%clk 0:00:06.5]} 47... Kc6 {[%clk 0:00:19.9]} 48. Re5 {[%clk 0:00:04]}
48... Kd6 {[%clk 0:00:19.3]} 49. Re4 {[%clk 0:00:02.8]} 49... Rd8 {[%clk
0:00:18.5]} 50. Rf4 {[%clk 0:00:01.9]} 50... Kc6+ {[%clk 0:00:18.3]} 51. Ke5
{[%clk 0:00:01.3]} 51... Rd5+ {[%clk 0:00:16.7]} 0-1

[Event "*** Titled Tuesday Blitz"]
[Site "Chess.com"]
[Date "2020.11.03"]
[Round "3"]
[White "kreonx"]
[Black "annacramling"]
[Result "1-0"]
[WhiteElo "2307"]
[BlackElo "1968"]
[TimeControl "180+1"]
[EndTime "10:31:18 PST"]
[Termination "kreonx won on time"]

1. e4 {[%clk 0:03:00.9]} 1... c5 {[%clk 0:02:56.3]} 2. c4 {[%clk 0:02:58.1]}
2... Nc6 {[%clk 0:02:54.9]} 3. Nc3 {[%clk 0:02:56.1]} 3... g6 {[%clk 0:02:50.5]}
4. g3 {[%clk 0:02:54.5]} 4... Bg7 {[%clk 0:02:50]} 5. Bg2 {[%clk 0:02:54.7]}
5... d6 {[%clk 0:02:50.1]} 6. Rb1 {[%clk 0:02:53.9]} 6... a5 {[%clk 0:02:45.1]}
7. Nge2 {[%clk 0:02:51.4]} 7... Nf6 {[%clk 0:02:40.6]} 8. O-O {[%clk 0:02:49.6]}
8... O-O {[%clk 0:02:39.6]} 9. d4 {[%clk 0:02:42.5]} 9... cxd4 {[%clk
0:02:39.2]} 10. Nxd4 {[%clk 0:02:43.4]} 10... Nxe4 {[%clk 0:02:13.7]} 11. Nxc6
{[%clk 0:02:14.9]} 11... Nxc3 {[%clk 0:02:13.4]} 12. Nxd8 {[%clk 0:01:49.9]}
12... Nxd1 {[%clk 0:02:12]} 13. Nxb7 {[%clk 0:01:49.7]} 13... Bf5 {[%clk
0:01:45.4]} 14. Ra1 {[%clk 0:01:35.5]} 14... Nxb2 {[%clk 0:01:43.5]} 15. Nxd6
{[%clk 0:01:18.3]} 15... exd6 {[%clk 0:01:34.8]} 16. Bxa8 {[%clk 0:01:01.4]}
16... Rxa8 {[%clk 0:01:35.7]} 17. Bxb2 {[%clk 0:00:39.9]} 17... Bxb2 {[%clk
0:01:36.6]} 18. Rad1 {[%clk 0:00:39.8]} 18... Ba3 {[%clk 0:00:57.1]} 19. f3
{[%clk 0:00:39.7]} 19... Bb4 {[%clk 0:00:39.2]} 20. g4 {[%clk 0:00:35.8]} 20...
Be6 {[%clk 0:00:34.9]} 21. Rc1 {[%clk 0:00:32.1]} 21... Rc8 {[%clk 0:00:34]} 22.
Kg2 {[%clk 0:00:28]} 22... Kg7 {[%clk 0:00:25.2]} 23. Rfd1 {[%clk 0:00:22.3]}
23... Rxc4 {[%clk 0:00:12.9]} 24. a4 {[%clk 0:00:21.6]} 24... Rc5 {[%clk
0:00:06.5]} 25. h3 {[%clk 0:00:18.9]} 25... Bb3 {[%clk 0:00:05.5]} 26. Rxc5
{[%clk 0:00:15.3]} 26... Bxc5 {[%clk 0:00:05.2]} 27. Ra1 {[%clk 0:00:14.8]}
27... Bd4 {[%clk 0:00:05.7]} 28. Ra3 {[%clk 0:00:14.3]} 28... Bd5 {[%clk
0:00:03.7]} 29. Rd3 {[%clk 0:00:13.2]} 29... Bxf3+ {[%clk 0:00:02.9]} 30. Kxf3
{[%clk 0:00:12.5]} 30... Bc5 {[%clk 0:00:03.5]} 31. Ke4 {[%clk 0:00:13]} 31...
Kf6 {[%clk 0:00:03.9]} 32. Kd5 {[%clk 0:00:13.1]} 32... Ke7 {[%clk 0:00:04.4]}
33. Rb3 {[%clk 0:00:10.9]} 33... f5 {[%clk 0:00:03.5]} 34. Rb7+ {[%clk
0:00:11.1]} 34... Kf6 {[%clk 0:00:03.3]} 35. gxf5 {[%clk 0:00:11.2]} 35... gxf5
{[%clk 0:00:02.6]} 36. Rxh7 {[%clk 0:00:11.6]} 36... f4 {[%clk 0:00:02.7]} 37.
Ke4 {[%clk 0:00:11.7]} 37... Be3 {[%clk 0:00:03.1]} 38. Rh6+ {[%clk 0:00:11.9]}
38... Ke7 {[%clk 0:00:03.4]} 39. h4 {[%clk 0:00:12.1]} 39... d5+ {[%clk
0:00:03]} 40. Kxd5 {[%clk 0:00:10.5]} 40... Kf7 {[%clk 0:00:01.7]} 41. Re6
{[%clk 0:00:10]} 41... Bd2 {[%clk 0:00:01.4]} 42. Re2 {[%clk 0:00:09.2]} 42...
Bc1 {[%clk 0:00:01.3]} 43. Rg2 {[%clk 0:00:07.4]} 43... Kf6 {[%clk 0:00:01.3]}
44. Ke4 {[%clk 0:00:07.6]} 1-0

[Event "*** Titled Tuesday Blitz"]
[Site "Chess.com"]
[Date "2020.11.03"]
[Round "3"]
[White "BillieKimbah"]
[Black "Legendinunknown"]
[Result "0-1"]
[WhiteElo "2852"]
[BlackElo "2668"]
[TimeControl "180+1"]
[EndTime "10:31:21 PST"]
[Termination "Legendinunknown won by resignation"]

1. d4 {[%clk 0:02:59.9]} 1... d5 {[%clk 0:02:57.8]} 2. c4 {[%clk 0:02:58.7]}
2... c6 {[%clk 0:02:57.1]} 3. Nf3 {[%clk 0:02:56.8]} 3... Nf6 {[%clk 0:02:56.1]}
4. g3 {[%clk 0:02:53.8]} 4... e6 {[%clk 0:02:55.1]} 5. Bg2 {[%clk 0:02:52.2]}
5... Bd6 {[%clk 0:02:54.1]} 6. Nbd2 {[%clk 0:02:48.1]} 6... Nbd7 {[%clk
0:02:50.2]} 7. O-O {[%clk 0:02:47.3]} 7... O-O {[%clk 0:02:49]} 8. Qc2 {[%clk
0:02:47.3]} 8... b6 {[%clk 0:02:37]} 9. e4 {[%clk 0:02:46.6]} 9... dxe4 {[%clk
0:02:36.3]} 10. Ng5 {[%clk 0:02:43.6]} 10... Bb7 {[%clk 0:02:33]} 11. Ndxe4
{[%clk 0:02:41.8]} 11... Be7 {[%clk 0:02:32]} 12. Nxf6+ {[%clk 0:02:35.9]} 12...
Nxf6 {[%clk 0:02:32.9]} 13. Rd1 {[%clk 0:02:34.3]} 13... h6 {[%clk 0:02:29]} 14.
Nf3 {[%clk 0:02:31.9]} 14... Qc8 {[%clk 0:02:25.4]} 15. c5 {[%clk 0:02:31.6]}
15... bxc5 {[%clk 0:02:17.9]} 16. dxc5 {[%clk 0:02:31.3]} 16... Nd5 {[%clk
0:02:18.4]} 17. a3 {[%clk 0:02:30.2]} 17... a5 {[%clk 0:02:15.9]} 18. b3 {[%clk
0:02:12.2]} 18... Bf6 {[%clk 0:02:00.8]} 19. Bb2 {[%clk 0:02:11.6]} 19... Ba6
{[%clk 0:01:55.9]} 20. Bxf6 {[%clk 0:02:06.5]} 20... Nxf6 {[%clk 0:01:55.8]} 21.
Rd6 {[%clk 0:02:07.1]} 21... Rd8 {[%clk 0:01:51.8]} 22. Rad1 {[%clk 0:02:05.6]}
22... Nd5 {[%clk 0:01:50.2]} 23. Ne5 {[%clk 0:02:04.6]} 23... Bb7 {[%clk
0:01:47.8]} 24. Nc4 {[%clk 0:01:30.2]} 24... Qc7 {[%clk 0:01:43.6]} 25. h4
{[%clk 0:01:28.9]} 25... Ba6 {[%clk 0:01:40.7]} 26. Rxd8+ {[%clk 0:01:28]} 26...
Rxd8 {[%clk 0:01:39.8]} 27. Nd6 {[%clk 0:01:28.9]} 27... Qe7 {[%clk 0:01:35]}
28. Qd2 {[%clk 0:01:26.5]} 28... Qc7 {[%clk 0:01:25.2]} 29. Be4 {[%clk
0:01:26.4]} 29... Rb8 {[%clk 0:01:12.4]} 30. Bc2 {[%clk 0:01:25.1]} 30... a4
{[%clk 0:00:59]} 31. b4 {[%clk 0:01:24.2]} 31... Bb5 {[%clk 0:00:57.7]} 32. Be4
{[%clk 0:01:19.5]} 32... Nf6 {[%clk 0:00:51.7]} 33. Bf3 {[%clk 0:01:16.9]} 33...
Qe7 {[%clk 0:00:45.4]} 34. Qf4 {[%clk 0:01:07.4]} 34... e5 {[%clk 0:00:43.5]}
35. Qe3 {[%clk 0:01:06.2]} 35... Qe6 {[%clk 0:00:40.6]} 36. Re1 {[%clk
0:00:58.5]} 36... Qa2 {[%clk 0:00:36.2]} 37. Qxe5 {[%clk 0:00:53.8]} 37... Qxa3
{[%clk 0:00:30.4]} 38. Nc4 {[%clk 0:00:47.6]} 38... Qxf3 {[%clk 0:00:20.9]} 39.
Qxb8+ {[%clk 0:00:47.5]} 39... Kh7 {[%clk 0:00:21.5]} 40. Ne5 {[%clk 0:00:33.9]}
40... Qc3 {[%clk 0:00:21.5]} 41. Re3 {[%clk 0:00:10.1]} 41... Qxb4 {[%clk
0:00:21.2]} 42. Nxf7 {[%clk 0:00:07.5]} 42... Qb1+ {[%clk 0:00:21.1]} 43. Kh2
{[%clk 0:00:07.3]} 43... Ng4+ {[%clk 0:00:20.9]} 44. Kh3 {[%clk 0:00:06.8]}
44... Bf1+ {[%clk 0:00:20.5]} 45. Kxg4 {[%clk 0:00:07.3]} 45... Qxb8 {[%clk
0:00:21.1]} 46. Ne5 {[%clk 0:00:06.9]} 46... a3 {[%clk 0:00:18.1]} 47. Rxa3
{[%clk 0:00:06.6]} 47... Qxe5 {[%clk 0:00:17.7]} 48. Re3 {[%clk 0:00:07.5]}
48... Qxc5 {[%clk 0:00:17.5]} 49. h5 {[%clk 0:00:07.3]} 49... Bc4 {[%clk
0:00:16.4]} 50. Kh3 {[%clk 0:00:06.5]} 50... Bf7 {[%clk 0:00:16.4]} 51. Kg2
{[%clk 0:00:07.4]} 51... Qxh5 {[%clk 0:00:16]} 52. f3 {[%clk 0:00:07.4]} 52...
Qd5 {[%clk 0:00:16.5]} 53. g4 {[%clk 0:00:07.7]} 53... Qd2+ {[%clk 0:00:16.7]}
0-1